[Event "FIDE WTC Prel-A 2022"]
[Site "Jerusalem"]
[Date "2022.11.20"]
[Round "1.1"]
[White "Van Foreest, Jorden"]
[Black "Santos Latasa, Jaime"]
[Result "1/2-1/2"]
[ECO "D38"]
[WhiteElo "2690"]
[BlackElo "2665"]
[Annotator "TA"]
[PlyCount "64"]
[EventDate "2022.11.20"]
[EventType "team-tourn"]
[EventCountry "ISR"]
[SourceTitle "playchess.com"]
[Source "ChessBase"]
[SourceQuality "1"]
[WhiteTeam "Netherlands"]
[BlackTeam "Spain"]
[WhiteTeamCountry "NED"]
[BlackTeamCountry "ESP"]
[TimeControl "2700+10"]

{[%evp 15,64,0,0,14,5,4,35,30,44,3,39,28,14,25,19,14,31,6,7,6,14,12,6,12,49,29,12,34,11,0,0,0,10,10,21,0,0,0,0,0,0,0,0,0,0,-8,-8,-9,-3,-71,-55]} 1. d4 {[%emt 0:00:05]} Nf6 {[%emt 0:00:05]} 2. c4 {[%emt 0:00:05]} e6 {[%emt 0:00:06]} 3. Nf3 {[%emt 0:00:09]} d5 {[%emt 0:00:03]} 4. Nc3 {[%emt 0:00:07]} Bb4 {[%emt 0:00:12]} 5. cxd5 {[%emt 0:00:23]} exd5 {[%emt 0:00:02]} 6. Bg5 {[%emt 0:00:10]} h6 {[%emt 0:00:06]} 7. Bxf6 {[%emt 0:00:24]} Qxf6 {[%emt 0:00:03]} 8. e3 {[%emt 0:00:13] 8.Qa4+ is the modern continuation.} O-O {[%emt 0:00:44]} 9. Bd3 {[%emt 0:00:34] D38: Queen's Gambit Declined: Ragozin Defence (4 Nf3 Bb4).} Rd8 {[%emt 0:03:03]} 10. O-O {[%emt 0:00:35] [#]} Bf8 $146 {[%emt 0:02:56]} ({Predecessor:} 10... Nc6 11. a3 Bxc3 12. bxc3 Bf5 13. Bxf5 Qxf5 14. Qb1 Qxb1 15. Raxb1 b6 16. Rfc1 Na5 {½-½ (62) Reyes Cortes,R (1613)-Santamaria Quintana,I (1275) ICCF email 2014}) 11. Qb3 {[%emt 0:01:56] White is slightly better.} c6 {[%emt 0:00:36]} 12. Rfe1 {[%emt 0:01:42]} (12. Ne5 {looks sharper.} Qe7 13. Rae1 Nd7 14. f4) 12... Qe7 {[%emt 0:02:23]} 13. e4 {[%emt 0:00:04][%cal Re4d5]} Be6 {[%emt 0:01:09] [#] And now ...dxe4 would win.} 14. exd5 {[%emt 0:01:18]} cxd5 {[%emt 0:00:01]} 15. Bf5 {[%emt 0:00:01][%cal Oe1e6] Hoping for Rxe6!} Nc6 {[%emt 0:00:04]} 16. Rad1 {[%emt 0:04:21][%cal Ba1d1,Bd1d3,Bd3e3][%mdl 32]} Qd7 {[%emt 0:01:22]} 17. Bxe6 {[%emt 0:00:19]} fxe6 {[%emt 0:00:02]} 18. Rd3 {[%emt 0:02:13]} Re8 {[%emt 0:01:11]} 19. Rde3 {[%emt 0:00:10]} Qf7 {[%emt 0:05:06]} 20. Qb5 {[%emt 0:01:21]} g5 {[%emt 0:03:38]} 21. Qe2 {[%emt 0:00:19][%cal Re3e6]} Bg7 {[%emt 0:00:09]} 22. Rxe6 {[%emt 0:06:13]} (22. Nb5 {is more complex.} Rad8 23. Ne5 Bxe5 24. dxe5 Rf8 25. Nd6) 22... Rxe6 {[%emt 0:00:09]} 23. Qxe6 {[%emt 0:00:02]} Qxe6 {[%emt 0:00:04]} 24. Rxe6 {[%emt 0:26:26]} Rd8 $1 {[%emt 0:03:27]} 25. Re1 {[%emt 0:00:00]} Nxd4 {[%emt 0:02:12]} 26. Nxd4 {[%emt 0:00:00]} Bxd4 {[%emt 0:00:02]} 27. Rd1 {[%emt 0:00:00]} Bxc3 {[%emt 0:00:08]} 28. bxc3 $11 {[%emt 0:00:00] KR-KR} Kf7 {[%emt 0:00:19]} 29. Kf1 {[%emt 0:00:00]} Ke6 {[%emt 0:00:43]} 30. Rd3 {[%emt 0:00:00]} Rd6 {[%emt 0:00:17]} 31. Ke2 {[%emt 0:00:00]} Ra6 {[%emt 0:00:58]} 32. Rd2 {[%emt 0:00:00]} (32. Rh3 $1 $11 {remains equal.} Ke5 33. a4) 32... Ra4 {[%emt 0:00:06] Weighted Error Value: White=0.11 (very precise) /Black=0.06 (flawless)} 1/2-1/2

[Event "FIDE WTC Prel-A 2022"]
[Site "Jerusalem"]
[Date "2022.11.20"]
[Round "1.2"]
[White "Anton Guijarro, David"]
[Black "Van Foreest, Lucas"]
[Result "1-0"]
[ECO "C65"]
[WhiteElo "2668"]
[BlackElo "2585"]
[Annotator "TA"]
[PlyCount "79"]
[EventDate "2022.11.20"]
[EventType "team-tourn"]
[EventCountry "ISR"]
[SourceTitle "playchess.com"]
[Source "ChessBase"]
[SourceQuality "1"]
[WhiteTeam "Spain"]
[BlackTeam "Netherlands"]
[WhiteTeamCountry "ESP"]
[BlackTeamCountry "NED"]
[TimeControl "2700+10"]

{[%evp 9,79,-2,-13,-3,12,-1,22,16,23,29,24,12,13,24,20,15,27,22,23,22,23,23,48,45,37,19,33,18,35,10,34,20,60,82,68,78,102,64,75,0,59,22,96,58,58,57,47,10,48,16,57,49,58,52,184,185,292,283,483,466,457,426,789,778,791,791,2530,2334,29977,29980,29990,29991]} 1. e4 {[%emt 0:00:04]} e5 {[%emt 0:00:17]} 2. Nf3 {[%emt 0:00:06]} Nc6 {[%emt 0:00:18]} 3. Bb5 {[%emt 0:00:21]} Nf6 {[%emt 0:00:05]} 4. d3 {[%emt 0:00:30]} Bc5 {[%emt 0:00:24]} 5. Bg5 {[%emt 0:00:22][%cal Bc1g5,Bg5h4,Bh4g3][%mdl 32]} h6 {[%emt 0:02:03]} 6. Bh4 {[%emt 0:00:06] C65: Ruy Lopez: Berlin Defence (3...Nf6), unusual lines and 4 0-0 Bc5.} d6 {[%emt 0:00:45]} 7. Nc3 {[%emt 0:00:56]} g5 {[%emt 0:02:45]} 8. Bg3 {[%emt 0:00:06] The position is equal.} Bd7 {[%emt 0:01:12]} 9. Na4 {[%emt 0:00:38]} Bb6 {[%emt 0:00:22]} 10. h4 {[%emt 0:01:37]} g4 {[%emt 0:01:37]} 11. Nxb6 {[%emt 0:00:18]} axb6 {[%emt 0:00:22]} 12. Nh2 {[%emt 0:00:38][%cal Bf3h2,Bh2f1,Bf1e3][%mdl 32] [#]} Nd4 $146 {[%emt 0:04:06]} ({Predecessor:} 12... Qe7 13. c3 O-O-O 14. Nf1 d5 15. Qa4 Kb8 16. Ne3 dxe4 17. dxe4 Qc5 18. O-O-O Be6 19. Bxc6 bxc6 {½-½ (68) Saric,I (2667)-Bok,B (2640) Khanty-Mansiysk 2019}) 13. Bxd7+ {[%emt 0:00:27]} Qxd7 {[%emt 0:00:02]} 14. c3 {[%emt 0:00:30]} Nc6 {[%emt 0:00:02]} 15. O-O {[%emt 0:00:25]} Rg8 {[%emt 0:06:25]} 16. Re1 {[%emt 0:02:55]} Nh5 {[%emt 0:02:18]} 17. Nf1 {[%emt 0:02:11]} f5 {[%emt 0:03:33]} 18. exf5 {[%emt 0:00:17]} Qxf5 {[%emt 0:00:07]} 19. Ne3 {[%emt 0:01:16]} (19. d4 {looks sharper.} O-O-O 20. dxe5 Nxe5 21. Ne3) 19... Qg6 {[%emt 0:01:27]} 20. a4 {[%emt 0:04:59]} Kf8 {[%emt 0:01:52]} 21. d4 {[%emt 0:01:53]} exd4 {[%emt 0:00:03]} 22. cxd4 {[%emt 0:01:29]} Rg7 {[%emt 0:00:16]} 23. Rc1 {[%emt 0:02:53]} Re8 $1 {[%emt 0:01:44]} 24. Qd2 {[%emt 0:05:28]} (24. Nd5 $16) 24... Kg8 {[%emt 0:01:24]} (24... Re4 $11) 25. b4 {[%emt 0:01:15][%cal Bb2b4,Bb4b5][%mdl 32] White wants to play a5.} Kh7 {[%emt 0:00:40]} (25... Re4 $11) 26. b5 {[%emt 0:00:47]} Na5 {[%emt 0:04:20] White must now prevent ...Nb3.} 27. Qc3 {[%emt 0:04:46] Prevents Nb3.} Nf6 {[%emt 0:00:02] Inhibits Nd5.} 28. Qc2 {[%emt 0:02:41]} Re4 {[%emt 0:00:31]} 29. Kh2 {[%emt 0:01:55][%cal Oe3d5] And now Nd5! would win.} Rge7 {[%emt 0:03:32]} 30. Qb1 {[%emt 0:01:57]} h5 {[%emt 0:03:15]} (30... Rxd4 $2 31. Nf5 Rxe1 32. Rxc7+ (32. Rxe1 Rd5 $11) 32... Kh8 33. Qxe1 $18) 31. Red1 {[%emt 0:04:00]} Kg7 {[%emt 0:01:48] [#] Loses the game.} (31... Rg7 $14) 32. Rc3 $1 $18 {[%emt 0:00:38]} Kh7 {[%emt 0:01:04]} (32... Rf7 $142 33. Qc2 c6) 33. Rdc1 {[%emt 0:00:41]} c6 {[%emt 0:00:06]} (33... Ne8 34. Nd5 Rf7 35. Nxc7 Ng7) 34. bxc6 {[%emt 0:00:18]} Nxc6 {[%emt 0:00:01]} 35. Qxb6 {[%emt 0:00:28]} Nxd4 {[%emt 0:01:46]} (35... Ne8 $142 36. Rc4 Rf7) 36. Rc7 {[%emt 0:00:09]} Ne2 {[%emt 0:00:15]} 37. Qxb7 {[%emt 0:00:38]} Qf7 {[%emt 0:00:09] [#]} 38. Nf5 $1 {[%emt 0:00:09]} Nxc1 {[%emt 0:00:17]} 39. Nxe7 {[%emt 0:00:16]} Ne8 {[%emt 0:00:06]} 40. Qxe4+ {[%emt 0:00:06] Weighted Error Value: White=0.10 (very precise) /Black=0.54} 1-0

[Event "FIDE WTC Prel-A 2022"]
[Site "Jerusalem"]
[Date "2022.11.20"]
[Round "1.3"]
[White "Warmerdam, Max"]
[Black "Shirov, Alexei"]
[Result "1/2-1/2"]
[ECO "D85"]
[WhiteElo "2617"]
[BlackElo "2666"]
[Annotator "TA"]
[PlyCount "59"]
[EventDate "2022.11.20"]
[EventType "team-tourn"]
[EventCountry "ISR"]
[SourceTitle "playchess.com"]
[Source "ChessBase"]
[SourceQuality "1"]
[WhiteTeam "Netherlands"]
[BlackTeam "Spain"]
[WhiteTeamCountry "NED"]
[BlackTeamCountry "ESP"]
[TimeControl "2700+10"]

{[%evp 26,59,18,0,0,0,0,0,0,0,0,0,0,0,0,0,0,0,0,0,0,0,0,0,0,0,0,0,0,0,0,0,0,0,0,0]} 1. d4 {[%emt 0:00:03]} Nf6 {[%emt 0:00:03]} 2. c4 {[%emt 0:00:03]} g6 {[%emt 0:00:03]} 3. Nc3 {[%emt 0:01:07]} d5 {[%emt 0:00:02]} 4. Nf3 {[%emt 0:00:04]} Bg7 {[%emt 0:00:02]} 5. cxd5 {[%emt 0:00:02]} Nxd5 {[%emt 0:00:02]} 6. e4 {[%emt 0:00:02]} Nxc3 {[%emt 0:00:05]} 7. bxc3 {[%emt 0:00:02]} c5 {[%emt 0:00:03]} 8. Bb5+ {[%emt 0:00:02]} Nc6 {[%emt 0:02:51]} 9. O-O {[%emt 0:00:06]} cxd4 {[%emt 0:00:49]} 10. cxd4 {[%emt 0:00:19]} O-O {[%emt 0:00:03]} 11. Be3 {[%emt 0:03:38]} Bg4 {[%emt 0:00:29]} 12. Bxc6 {[%emt 0:00:50]} bxc6 {[%emt 0:00:03]} 13. Rc1 {[%emt 0:00:03]} Qa5 {[%emt 0:00:25]} 14. Qd2 {[%emt 0:01:35] The position is equal.} Qxd2 {[%emt 0:00:21] D85: Exchange Grünfeld: Unusual White 7th moves and lines with 7 Nf3.} 15. Nxd2 {[%emt 0:00:32][%cal Bf3d2,Bd2b3,Bb3c5][%mdl 32]} Rfd8 {[%emt 0:00:15]} 16. Nb3 {[%emt 0:02:05]} a5 {[%emt 0:12:37]} 17. Rxc6 {[%emt 0:02:06]} a4 {[%emt 0:00:10]} 18. Nc5 {[%emt 0:00:10]} Bxd4 {[%emt 0:00:42]} 19. Bxd4 {[%emt 0:00:00]} Rxd4 {[%emt 0:00:03]} 20. f3 {[%emt 0:00:01]} Rc8 {[%emt 0:03:20]} 21. Rxc8+ {[%emt 0:02:08]} Bxc8 $11 {[%emt 0:00:02][%mdl 4096] Endgame KRB-KRN} 22. Rc1 {[%emt 0:02:34]} Be6 {[%emt 0:06:44] [#]} 23. a3 $146 {[%emt 0:00:35]} ({Predecessor:} 23. Nxe6 fxe6 24. Rc2 Kf7 25. Kf2 Rd3 26. h4 Kf6 27. Kg3 Ra3 28. Kf4 e5+ 29. Kg4 {½-½ (41) Spalir,J (2336)-Djukic,N (2574) Zadar 2018}) 23... Bb3 {[%emt 0:00:23]} 24. Nxb3 {[%emt 0:08:20]} axb3 {[%emt 0:00:02] KR-KR} 25. Rb1 {[%emt 0:00:02]} Rd3 {[%emt 0:00:01]} 26. Rb2 {[%emt 0:01:16]} f5 {[%emt 0:00:32]} 27. Kf2 {[%emt 0:01:48]} f4 {[%emt 0:06:59]} 28. a4 {[%emt 0:01:43]} Rd4 {[%emt 0:00:04]} 29. Rxb3 {[%emt 0:00:02] [#] Threatens to win with Ra3.} Rxa4 {[%emt 0:00:02]} 30. Rb2 {[%emt 0:00:04] An even fight not without its subleties.  Weighted Error Value: White=0.02 (flawless) /Black=0.00 (flawless)} 1/2-1/2

[Event "FIDE WTC Prel-A 2022"]
[Site "Jerusalem"]
[Date "2022.11.20"]
[Round "1.4"]
[White "Santos Ruiz, Miguel"]
[Black "Kevlishvili, Robby"]
[Result "1/2-1/2"]
[ECO "B53"]
[WhiteElo "2587"]
[BlackElo "2536"]
[Annotator "TA"]
[PlyCount "89"]
[EventDate "2022.11.20"]
[EventType "team-tourn"]
[EventCountry "ISR"]
[SourceTitle "playchess.com"]
[Source "ChessBase"]
[SourceQuality "1"]
[WhiteTeam "Spain"]
[BlackTeam "Netherlands"]
[WhiteTeamCountry "ESP"]
[BlackTeamCountry "NED"]
[TimeControl "2700+10"]

{[%evp 9,89,7,13,8,9,0,0,-12,-12,0,0,0,28,22,25,20,37,15,16,13,16,0,0,0,0,0,0,-56,0,-20,-22,-27,-20,-24,-27,-22,-19,-27,-14,-18,-21,-8,0,0,0,0,0,-39,-39,-39,-39,-39,-39,-39,-40,-53,-27,-27,-27,-27,-27,-27,-15,-15,-15,-15,-15,-15,-15,-15,-10,-21,-21,-21,-21,-21,0,-21,0,-21,0,-31]} 1. e4 {[%emt 0:45:20]} c5 {[%emt 0:00:04]} 2. Nf3 {[%emt 0:00:00]} d6 {[%emt 0:00:03]} 3. Nc3 {[%emt 0:00:00]} Nf6 {[%emt 0:00:06]} 4. d4 {[%emt 0:00:00]} cxd4 {[%emt 0:00:03]} 5. Qxd4 {[%emt 0:00:00]} Nc6 {[%emt 0:00:20]} 6. Qe3 {[%emt 0:00:00] B53: Sicilian: 2...d6: Lines with Qxd4.} g6 {[%emt 0:00:49]} 7. h3 {[%emt 0:00:00]} Bg7 {[%emt 0:00:04]} 8. Bc4 {[%emt 0:00:00]} O-O {[%emt 0:00:12]} 9. O-O {[%emt 0:00:00]} Nd7 {[%emt 0:02:44]} 10. Rd1 {[%emt 0:00:00]} Nde5 {[%emt 0:00:14]} 11. Nxe5 {[%emt 0:00:00]} Nxe5 {[%emt 0:00:03]} 12. Bb3 {[%emt 0:00:00] [#]} Bd7 $146 {[%emt 0:01:47]} ({Predecessor:} 12... Rb8 13. Qxa7 Bd7 14. Qe3 b5 15. Qe2 b4 16. Nd5 Bb5 17. Qe1 Bd7 18. Bg5 Re8 {1-0 (62) Demchenko,A (2654)-Rodchenkov,S (2346) Chess.com INT 2022}) 13. a4 {[%emt 0:00:00]} Nc6 {[%emt 0:00:39]} 14. Nd5 {[%emt 0:00:00]} Na5 {[%emt 0:00:57]} 15. Ra3 {[%emt 0:00:00]} Nxb3 {[%emt 0:00:55]} 16. Qxb3 {[%emt 0:00:00]} e6 {[%emt 0:02:44]} 17. Nc3 {[%emt 0:00:00]} Bc6 {[%emt 0:00:19]} 18. Qb4 {[%emt 0:00:00]} ({White should try} 18. Bf4 $11) 18... Be5 {[%emt 0:02:22]} (18... Qh4 $1 $15) 19. f4 {[%emt 0:00:00]} a5 {[%emt 0:00:09]} 20. Qc4 {[%emt 0:00:00]} Qb6+ {[%emt 0:03:10]} 21. Kh2 {[%emt 0:00:00]} Qb4 {[%emt 0:02:34]} 22. Qd3 {[%emt 0:00:00]} Bxc3 {[%emt 0:00:25]} 23. Rxc3 {[%emt 0:00:00]} Qxe4 {[%emt 0:01:03]} (23... Bxe4 {feels hotter.} 24. Qxd6 Bd5 25. Qe5 Qxa4 26. Rd4 Qe8) 24. Qxe4 {[%emt 0:00:00]} Bxe4 {[%emt 0:00:02]} 25. Rxd6 {[%emt 0:00:00]} Rfd8 {[%emt 0:00:28]} 26. Rxd8+ {[%emt 0:00:00]} Rxd8 $11 {[%emt 0:00:02][%mdl 4096] Endgame KRB-KRB} 27. Be3 {[%emt 0:00:00]} Bc6 {[%emt 0:00:50][%cal Be4c6,Bc6a4,Ba4b5,Bb5d3][%mdl 32]} 28. Rd3 {[%emt 0:00:00]} Rxd3 {[%emt 0:00:19]} 29. cxd3 {[%emt 0:00:00]} Bxa4 $15 {[%emt 0:00:07] KB-KB} 30. Bb6 {[%emt 0:00:00]} Bb5 {[%emt 0:00:09]} 31. Bxa5 {[%emt 0:00:00]} Bxd3 {[%emt 0:00:03]} 32. Kg1 {[%emt 0:00:00]} f6 {[%emt 0:01:29]} 33. Bc3 {[%emt 0:00:00]} Kf7 {[%emt 0:00:02]} 34. h4 {[%emt 0:00:00]} h6 {[%emt 0:01:00]} 35. Kf2 {[%emt 0:00:00]} g5 {[%emt 0:00:20]} 36. hxg5 {[%emt 0:00:00] The position is equal.} hxg5 {[%emt 0:00:05]} 37. fxg5 {[%emt 0:00:00]} fxg5 {[%emt 0:00:02]} 38. Ke3 {[%emt 0:00:00]} Bf1 {[%emt 0:00:07]} 39. g3 {[%emt 0:00:00]} Kg6 {[%emt 0:00:13]} 40. Be5 {[%emt 0:00:00]} Kf5 {[%emt 0:00:06]} 41. Kd4 {[%emt 0:00:00]} Bg2 {[%emt 0:00:10]} 42. Bb8 {[%emt 0:00:00]} Bf1 {[%emt 0:00:19]} 43. Be5 {[%emt 0:00:00]} Bg2 {[%emt 0:00:03]} 44. Bb8 {[%emt 0:00:00]} Bf1 {[%emt 0:00:03]} 45. Be5 {[%emt 0:00:00] Weighted Error Value: White=0.07 (flawless) /Black=0.07 (flawless)} 1/2-1/2

[Event "FIDE WTC Prel-A 2022"]
[Site "Jerusalem"]
[Date "2022.11.20"]
[Round "1.5"]
[White "Vachier-Lagrave, Maxime"]
[Black "Ivanchuk, Vasyl"]
[Result "1/2-1/2"]
[ECO "C77"]
[WhiteElo "2736"]
[BlackElo "2673"]
[Annotator "TA"]
[PlyCount "142"]
[EventDate "2022.11.20"]
[EventType "team-tourn"]
[EventCountry "ISR"]
[SourceTitle "playchess.com"]
[Source "ChessBase"]
[SourceQuality "1"]
[WhiteTeam "France"]
[BlackTeam "Ukraine"]
[WhiteTeamCountry "FRA"]
[BlackTeamCountry "UKR"]
[TimeControl "2700+10"]

{[%evp 15,142,18,42,22,21,15,17,9,18,8,12,8,20,0,0,0,0,0,0,0,0,3,8,18,26,15,22,-33,-37,-42,-31,-55,-43,-94,-78,-89,-34,-34,-27,-34,-28,-41,0,-10,0,0,0,0,0,-5,-5,-30,-12,-6,11,-10,-10,-16,-14,-13,0,-16,-43,-51,-41,-53,0,0,0,0,0,0,0,0,0,0,0,0,0,0,0,0,0,0,-2,-8,0,0,0,-8,-8,-6,-6,0,0,-4,-4,-8,-8,-8,-1,-7,0,0,0,0,0,0,0,0,0,0,0,0,0,0,0,0,0,0,0,0,0,0,0,0,0,0,0]} 1. e4 {[%emt 0:00:08]} e5 {[%emt 0:00:16]} 2. Nf3 {[%emt 0:00:02]} Nc6 {[%emt 0:00:03]} 3. Bb5 {[%emt 0:00:03]} a6 {[%emt 0:00:04]} 4. Ba4 {[%emt 0:00:03]} Nf6 {[%emt 0:00:03]} 5. O-O {[%emt 0:00:03]} Be7 {[%emt 0:00:04]} 6. d3 {[%emt 0:01:50]} d6 {[%emt 0:01:12]} 7. c3 {[%emt 0:00:28]} O-O {[%emt 0:00:04]} 8. Nbd2 {[%emt 0:00:47]} Nd7 {[%emt 0:06:29]} 9. Bc2 {[%emt 0:00:56] C77: Ruy Lopez: 3...a6 4 Ba4 Nf6, unusual lines.} Nb6 {[%emt 0:05:50]} 10. b4 {[%emt 0:04:09] [#]} f5 $146 {[%emt 0:02:26]} ({Predecessor:} 10... d5 11. Bb2 Be6 12. a4 f6 13. b5 dxe4 14. Nxe4 Na5 15. c4 Bb4 16. Ba3 Bxa3 17. Rxa3 {1-0 (38) Van Foreest,J (2514)-Haslinger,S (2526) Dieren 2015}) 11. a4 {[%emt 0:03:35]} fxe4 {[%emt 0:01:15]} 12. dxe4 {[%emt 0:00:20]} Bg4 {[%emt 0:00:03]} 13. h3 {[%emt 0:01:37]} Bh5 {[%emt 0:00:05]} 14. Re1 {[%emt 0:02:19]} Bg5 {[%emt 0:14:38]} 15. g4 {[%emt 0:01:36]} Be8 {[%emt 0:02:49]} 16. Nxg5 {[%emt 0:04:36]} Qxg5 {[%emt 0:01:15]} 17. Nf3 {[%emt 0:01:02] Inhibits Qh4.} Qf6 {[%emt 0:00:56]} 18. Kg2 {[%emt 0:00:23]} Bd7 {[%emt 0:06:22]} 19. a5 {[%emt 0:03:24]} Nc8 {[%emt 0:00:03]} 20. Bb3+ {[%emt 0:01:10]} Kh8 {[%emt 0:00:42]} 21. g5 {[%emt 0:05:30] Active counter play!} (21. Bg5 $11 Qg6 22. Qd2) 21... Qd8 $15 {[%emt 0:01:17]} ({But not} 21... Bxh3+ 22. Kg3 Qxf3+ 23. Qxf3 Rxf3+ 24. Kxf3 $16) 22. Nh4 {[%emt 0:01:45] [#] Qh5 is the strong threat.} N8e7 {[%emt 0:00:17]} 23. Kg3 {[%emt 0:01:10]} Qe8 {[%emt 0:00:55]} 24. Qe2 {[%emt 0:01:47]} (24. Ra2 $15) 24... Nd8 $17 {[%emt 0:00:47]} 25. f4 {[%emt 0:00:36]} Be6 {[%emt 0:00:50]} (25... Bb5 $17 26. Qf3 exf4+ 27. Bxf4 Ng6 28. Nxg6+ Qxg6) 26. Bc2 $15 {[%emt 0:01:04] [#] Black must now prevent f5.} exf4+ {[%emt 0:00:12]} 27. Bxf4 {[%emt 0:00:01]} Ndc6 {[%emt 0:00:07][%cal Oe6h3]} 28. Rf1 {[%emt 0:01:38]} ({Much worse is} 28. Nf5 Qd7 29. Rf1 Nxf5+ 30. exf5 Bxf5 $17) 28... Rd8 {[%emt 0:00:23]} 29. Rad1 {[%emt 0:01:00]} Ne5 {[%emt 0:00:04]} 30. Bxe5 {[%emt 0:00:16]} dxe5 {[%emt 0:00:00]} 31. Rxf8+ {[%emt 0:00:52]} Qxf8 {[%emt 0:00:01]} 32. Rf1 {[%emt 0:00:02]} Qe8 {[%emt 0:00:15]} 33. Rf2 {[%emt 0:01:46]} Qc6 {[%emt 0:00:18]} 34. Qe3 {[%emt 0:00:09]} Ng6 {[%emt 0:00:02]} 35. Nf3 {[%emt 0:00:31]} Bc8 {[%emt 0:00:24]} 36. Rd2 {[%emt 0:01:03]} Rf8 {[%emt 0:00:09]} 37. Bb3 {[%emt 0:00:03]} Be6 {[%emt 0:00:15]} 38. Bxe6 {[%emt 0:01:24]} Qxe6 {[%emt 0:00:00]} 39. Nh2 {[%emt 0:00:01]} Nf4 {[%emt 0:00:22]} 40. Ng4 {[%emt 0:00:05]} Qe7 {[%emt 0:00:09]} ({Better is} 40... b6 $15) 41. Qc5 $11 {[%emt 0:00:08] The position is equal.} Qxc5 {[%emt 0:00:04]} 42. bxc5 {[%emt 0:00:01][%mdl 4096] Endgame KRN-KRN} Ne6 {[%emt 0:00:00][%csl LRc5,LRg5]} 43. Rd5 {[%emt 0:00:26]} Nxg5 {[%emt 0:00:03]} 44. Rxe5 {[%emt 0:00:01]} h6 {[%emt 0:00:01]} 45. h4 {[%emt 0:00:02]} Rf3+ {[%emt 0:00:11]} 46. Kg2 {[%emt 0:00:01]} Rf4 {[%emt 0:00:03]} 47. Nf2 {[%emt 0:01:46]} Rxh4 {[%emt 0:00:35]} 48. Kg3 {[%emt 0:00:02] Against Rf4} Rh5 {[%emt 0:00:06]} 49. Re7 {[%emt 0:00:01]} Kg8 {[%emt 0:00:10]} 50. Kg4 {[%emt 0:00:19]} Rh2 {[%emt 0:00:07]} 51. Kg3 {[%emt 0:00:02] Prevents Rg2+.} Rh5 {[%emt 0:00:03]} 52. e5 {[%emt 0:01:07]} Kf8 {[%emt 0:00:23]} 53. Rxc7 {[%emt 0:00:01]} Ne6 {[%emt 0:00:00][%csl LRc7,LRe5]} 54. c6 {[%emt 0:00:02]} bxc6 {[%emt 0:00:27]} (54... Nxc7 $2 55. cxb7 Rg5+ 56. Kh4 $18) 55. Rxc6 {[%emt 0:00:01]} Rxe5 {[%emt 0:00:03]} 56. Rxa6 {[%emt 0:00:07]} Ke7 {[%emt 0:00:22]} 57. Ra7+ {[%emt 0:00:24]} Kd6 {[%emt 0:00:15]} 58. Kf3 {[%emt 0:00:23]} Ng5+ {[%emt 0:00:12]} 59. Kg4 {[%emt 0:00:22]} Re3 {[%emt 0:00:15]} 60. Rxg7 {[%emt 0:00:18]} Rxc3 {[%emt 0:00:02]} 61. Rg6+ {[%emt 0:00:04]} Ke5 {[%emt 0:00:12]} 62. Rxh6 {[%emt 0:00:03]} Ne6 {[%emt 0:00:08]} 63. Rh5+ {[%emt 0:00:03]} Kd4 {[%emt 0:00:01]} 64. Rb5 {[%emt 0:00:13]} Ra3 {[%emt 0:00:11]} 65. Kf5 {[%emt 0:00:29]} Nc5 {[%emt 0:00:06]} 66. Ng4 {[%emt 0:00:04]} Kc4 {[%emt 0:00:16]} 67. Rb1 {[%emt 0:00:02]} Rxa5 {[%emt 0:00:08]} 68. Ne5+ {[%emt 0:00:01]} Kc3 {[%emt 0:00:10]} 69. Nc6 {[%emt 0:00:05]} Ra2 {[%emt 0:00:10]} 70. Rc1+ {[%emt 0:00:01]} Rc2 {[%emt 0:00:01]} 71. Rxc2+ {[%emt 0:00:01]} Kxc2 {[%emt 0:00:01] Weighted Error Value: White=0.07 (flawless) /Black=0.08 (flawless)} 1/2-1/2